[Event "Polish Youth 1st League 2022"]
[Site "Lublin"]
[Date "2022.06.28"]
[Round "4.9"]
[White "Nawalaniec, Adam"]
[Black "Nagly, Wojciech"]
[Result "0-1"]
[ECO "B07"]
[WhiteElo "1740"]
[BlackElo "1464"]
[Annotator "NA RC"]
[PlyCount "53"]
[EventDate "2022.06.24"]
[EventType "team-tourn"]
[EventCountry "POL"]
[SourceTitle "playchess.com"]
[Source "ChessBase"]
[SourceQuality "1"]
[TimeControl "40/5400+30:1800+30"]

1. e4 {[%emt 0:00:03]} d6 {[%emt 0:00:18]} 2. d4 {[%emt 0:00:07]} Nf6 {[%emt 0:00:05]} 3. Nc3 {[%emt 0:00:07]} c6 {[%emt 0:00:14]} 4. Be2 {[%emt 0:04:06]} e6 {[%emt 0:02:58]} 5. Be3 {[%emt 0:12:54]} Be7 {[%emt 0:00:51]} 6. Qd2 {[%emt 0:02:32]} O-O {[%emt 0:00:45]} 7. f3 {[%emt 0:09:10]} d5 {[%emt 0:03:52]} 8. e5 {[%emt 0:04:49]} Nfd7 {[%emt 0:00:09]} 9. g4 {[%emt 0:05:28]} c5 {[%emt 0:04:16]} 10. f4 {[%emt 0:08:40]} cxd4 {[%emt 0:05:29]} 11. Bxd4 {[%emt 0:00:27]} Nc6 {[%emt 0:02:50]} 12. Nf3 {[%emt 0:02:15]} Nxd4 {[%emt 0:02:14]} 13. Nxd4 {[%emt 0:00:15]} Bc5 {[%emt 0:04:28]} 14. O-O-O {[%emt 0:05:33]} a6 {[%emt 0:12:08]} 15. h4 {[%emt 0:08:07]} b5 {[%emt 0:06:46]} 16. g5 {[%emt 0:04:55]} Nb6 {[%emt 0:11:27]} 17. Nb3 {[%emt 0:15:10]} Bb4 {[%emt 0:05:17]} 18. a3 {[%emt 0:03:56]} Bxc3 {[%emt 0:01:23]} 19. Qxc3 {[%emt 0:00:01]} Bb7 {[%emt 0:03:29]} 20. Qd4 {[%emt 0:01:46]} Rc8 {[%emt 0:01:49]} 21. Bd3 {[%emt 0:01:27]} Nc4 {[%emt 0:12:45]} 22. h5 {[%emt 0:01:30]} Qb6 {[%emt 0:00:40]} 23. h6 {[%emt 0:04:45]} Qxd4 {[%emt 0:01:04]} 24. Nxd4 {[%emt 0:00:07]} g6 {[%emt 0:00:39]} 25. Rhe1 {[%emt 0:02:11]} Rc7 {[%emt 0:02:26]} 26. Kb1 {[%emt 0:01:17]} Na5 {[%emt 0:01:47]} 27. b3 {[%emt 0:02:22]} 0-1

[Event "Polish Youth 1st League 2022"]
[Site "Lublin"]
[Date "2022.06.28"]
[Round "4.10"]
[White "Gibala, Adam"]
[Black "Kowalski, Witold"]
[Result "1/2-1/2"]
[ECO "B96"]
[WhiteElo "1516"]
[BlackElo "1613"]
[Annotator "NA RC"]
[PlyCount "237"]
[EventDate "2022.06.24"]
[EventType "team-tourn"]
[EventCountry "POL"]
[SourceTitle "playchess.com"]
[Source "ChessBase"]
[SourceQuality "1"]
[TimeControl "40/5400+30:1800+30"]

1. e4 {[%emt 0:00:02]} c5 {[%emt 0:00:06]} 2. Nf3 {[%emt 0:00:04]} d6 {[%emt 0:00:05]} 3. d4 {[%emt 0:00:05]} cxd4 {[%emt 0:00:06]} 4. Nxd4 {[%emt 0:00:07]} Nf6 {[%emt 0:00:05]} 5. Nc3 {[%emt 0:00:07]} a6 {[%emt 0:00:08]} 6. Bg5 {[%emt 0:00:06]} e6 {[%emt 0:00:08]} 7. f4 {[%emt 0:00:13]} b5 {[%emt 0:00:32]} 8. e5 {[%emt 0:11:42]} dxe5 {[%emt 0:00:08]} 9. fxe5 {[%emt 0:00:18]} Qc7 {[%emt 0:00:25]} 10. exf6 {[%emt 0:03:36]} Qe5+ {[%emt 0:00:23]} 11. Be2 {[%emt 0:00:29]} Qxg5 {[%emt 0:00:14]} 12. O-O {[%emt 0:02:54]} Ra7 {[%emt 0:11:48]} 13. Nb3 {[%emt 0:03:18]} Rd7 {[%emt 0:09:07]} 14. Bd3 {[%emt 0:06:44]} Bb7 {[%emt 0:07:29]} 15. Qe2 {[%emt 0:01:15]} Nc6 {[%emt 0:02:53]} 16. Ne4 {[%emt 0:03:30]} Qe5 {[%emt 0:03:22]} 17. fxg7 {[%emt 0:05:04]} Bxg7 {[%emt 0:03:59]} 18. Nbc5 {[%emt 0:01:08]} Rc7 {[%emt 0:09:58]} 19. Nxb7 {[%emt 0:00:22]} Rxb7 {[%emt 0:00:22]} 20. Rae1 {[%emt 0:00:25]} Qd4+ {[%emt 0:15:49]} 21. Kh1 {[%emt 0:00:40]} Rd7 {[%emt 0:09:11]} 22. Qh5 {[%emt 0:04:27]} Ne5 {[%emt 0:11:26]} 23. Ng5 {[%emt 0:04:03]} Qg4 {[%emt 0:06:43]} 24. Nxe6 {[%emt 0:02:16]} Qxe6 {[%emt 0:00:07]} 25. Bf5 {[%emt 0:00:08]} Qe7 {[%emt 0:00:13]} 26. Bxd7+ {[%emt 0:00:06]} Kxd7 {[%emt 0:00:06]} 27. Qh3+ {[%emt 0:03:19]} Kc7 {[%emt 0:04:28]} 28. Qe3 {[%emt 0:01:01]} Kb7 {[%emt 0:01:14]} 29. Qe4+ {[%emt 0:02:06]} Kb6 {[%emt 0:01:22]} 30. a4 {[%emt 0:00:45]} Qc7 {[%emt 0:01:27]} 31. c3 {[%emt 0:00:53]} h5 {[%emt 0:01:38]} 32. axb5 {[%emt 0:01:14]} axb5 {[%emt 0:00:22]} 33. Ra1 {[%emt 0:00:15]} Ng4 {[%emt 0:00:49]} 34. g3 {[%emt 0:01:13]} Rd8 {[%emt 0:00:41]} 35. Qb4 {[%emt 0:00:39]} Qc6+ {[%emt 0:00:30]} 36. Kg1 {[%emt 0:00:49]} Qc5+ {[%emt 0:00:30]} 37. Qxc5+ {[%emt 0:00:16]} Kxc5 {[%emt 0:00:04]} 38. Rxf7 {[%emt 0:00:51]} Be5 {[%emt 0:00:46]} 39. h3 {[%emt 0:02:36]} Nf6 {[%emt 0:00:27]} 40. Rf1 {[%emt 0:00:00]} Nd5 {[%emt 0:00:00]} 41. R1f5 {[%emt 0:03:38]} Bxg3 {[%emt 0:03:33]} 42. Rxh5 {[%emt 0:00:27]} Kc6 {[%emt 0:01:13]} 43. Rg5 {[%emt 0:01:21]} Bd6 {[%emt 0:01:21]} 44. Rg6 {[%emt 0:01:39]} Kc5 {[%emt 0:04:21]} 45. h4 {[%emt 0:04:03]} Bf4 {[%emt 0:03:50]} 46. Rg4 {[%emt 0:02:23]} Be3+ {[%emt 0:01:54]} 47. Kh2 {[%emt 0:00:49]} Bc1 {[%emt 0:01:01]} 48. b4+ {[%emt 0:00:29]} Kd6 {[%emt 0:00:21]} 49. c4 {[%emt 0:01:26]} bxc4 {[%emt 0:01:52]} 50. Rxc4 {[%emt 0:00:36]} Bd2 {[%emt 0:00:50]} 51. b5 {[%emt 0:01:49]} Rb8 {[%emt 0:01:41]} 52. Rc6+ {[%emt 0:00:23]} Ke5 {[%emt 0:00:30]} 53. h5 {[%emt 0:00:58]} Rh8 {[%emt 0:05:30]} 54. b6 {[%emt 0:02:13]} Rxh5+ {[%emt 0:01:17]} 55. Kg3 {[%emt 0:01:00]} Nxb6 {[%emt 0:05:41]} 56. Rxb6 {[%emt 0:00:12]} Ke4 {[%emt 0:01:03]} 57. Re7+ {[%emt 0:00:44]} Re5 {[%emt 0:01:07]} 58. Rd7 {[%emt 0:01:17]} Be1+ {[%emt 0:00:54]} 59. Kg4 {[%emt 0:00:16]} Re8 {[%emt 0:00:34]} 60. Rbb7 {[%emt 0:00:56]} Re5 {[%emt 0:00:44]} 61. Re7 {[%emt 0:00:22]} Bc3 {[%emt 0:00:28]} 62. Rf7 {[%emt 0:00:34]} Bd2 {[%emt 0:00:25]} 63. Rbd7 {[%emt 0:00:34]} Be3 {[%emt 0:01:02]} 64. Rfe7 {[%emt 0:00:23]} Bc1 {[%emt 0:00:59]} 65. Rxe5+ {[%emt 0:00:22]} Kxe5 {[%emt 0:00:02]} 66. Re7+ {[%emt 0:00:28]} Kd5 {[%emt 0:00:23]} 67. Kf5 {[%emt 0:00:07]} Kd4 {[%emt 0:00:27]} 68. Rd7+ {[%emt 0:00:05]} Ke3 {[%emt 0:00:12]} 69. Rb7 {[%emt 0:00:11]} Kd4 {[%emt 0:00:33]} 70. Rb5 {[%emt 0:00:11]} Bd2 {[%emt 0:01:06]} 71. Ke6 {[%emt 0:00:19]} Bc3 {[%emt 0:00:38]} 72. Kd6 {[%emt 0:00:08]} Ke4 {[%emt 0:00:30]} 73. Rb3 {[%emt 0:00:07]} Bd2 {[%emt 0:00:27]} 74. Rb2 {[%emt 0:00:15]} Bc3 {[%emt 0:00:20]} 75. Rg2 {[%emt 0:00:09]} Bf6 {[%emt 0:00:39]} 76. Ke6 {[%emt 0:00:07]} Bd8 {[%emt 0:00:39]} 77. Rg4+ {[%emt 0:00:07]} Kf3 {[%emt 0:00:20]} 78. Kf5 {[%emt 0:00:06]} Ke3 {[%emt 0:00:23]} 79. Ra4 {[%emt 0:00:13]} Bc7 {[%emt 0:00:26]} 80. Rc4 {[%emt 0:00:15]} Bb8 {[%emt 0:00:20]} 81. Ke6 {[%emt 0:00:10]} Bh2 {[%emt 0:00:28]} 82. Kd5 {[%emt 0:00:09]} Bb8 {[%emt 0:00:13]} 83. Rh4 {[%emt 0:00:31]} Bc7 {[%emt 0:00:39]} 84. Re4+ {[%emt 0:00:08]} Kf3 {[%emt 0:00:16]} 85. Re7 {[%emt 0:00:08]} Bb8 {[%emt 0:00:15]} 86. Rf7+ {[%emt 0:00:06]} Ke3 {[%emt 0:00:06]} 87. Rf8 {[%emt 0:00:08]} Bc7 {[%emt 0:00:19]} 88. Re8+ {[%emt 0:00:07]} Kd3 {[%emt 0:00:15]} 89. Re7 {[%emt 0:00:17]} Bf4 {[%emt 0:00:27]} 90. Ra7 {[%emt 0:00:10]} Bc1 {[%emt 0:00:17]} 91. Ra1 {[%emt 0:00:07]} Bb2 {[%emt 0:01:24]} 92. Rb1 {[%emt 0:00:06]} Kc3 {[%emt 0:00:44]} 93. Rh1 {[%emt 0:00:29]} Kb4 {[%emt 0:01:59]} 94. Rh2 {[%emt 0:00:10]} Kc3 {[%emt 0:00:32]} 95. Rh1 {[%emt 0:00:20]} Kb4 {[%emt 0:00:10]} 96. Rh2 {[%emt 0:00:15]} Kc3 97. Rh3+ Kb4 {[%emt 0:00:22]} 98. Rh7 {[%emt 0:00:17]} Bf6 {[%emt 0:00:35]} 99. Rc7 {[%emt 0:00:06]} Bd8 {[%emt 0:01:01]} 100. Rc4+ {[%emt 0:00:10]} Kb3 {[%emt 0:00:31]} 101. Kd4 {[%emt 0:00:05]} Be7 {[%emt 0:00:55]} 102. Kd3 {[%emt 0:00:05]} Bb4 {[%emt 0:00:38]} 103. Re4 {[%emt 0:00:19]} Bc5 {[%emt 0:00:31]} 104. Re8 {[%emt 0:00:06]} Bd6 {[%emt 0:00:20]} 105. Rd8 {[%emt 0:00:06]} Bf4 {[%emt 0:00:18]} 106. Rf8 {[%emt 0:00:04]} Bd6 {[%emt 0:00:26]} 107. Rf6 {[%emt 0:00:04]} Bc5 {[%emt 0:00:28]} 108. Rf7 {[%emt 0:00:13]} Bg1 {[%emt 0:00:56]} 109. Rb7+ {[%emt 0:00:05]} Ka4 {[%emt 0:00:30]} 110. Kc4 {[%emt 0:00:09]} Ka5 {[%emt 0:00:24]} 111. Rb5+ {[%emt 0:00:07]} Ka6 {[%emt 0:00:31]} 112. Rb2 {[%emt 0:00:06]} Ka5 {[%emt 0:00:19]} 113. Rb1 {[%emt 0:00:09]} Be3 {[%emt 0:00:20]} 114. Kd5 {[%emt 0:00:08]} Bf2 {[%emt 0:00:43]} 115. Rb2 {[%emt 0:00:14]} Be3 {[%emt 0:00:12]} 116. Kc6 {[%emt 0:00:09]} Bd4 {[%emt 0:00:32]} 117. Rb1 {[%emt 0:00:13]} Bf2 {[%emt 0:00:20]} 118. Kd5 {[%emt 0:00:10]} Be3 {[%emt 0:00:17]} 119. Rb3 {[%emt 0:00:09]} 1/2-1/2

[Event "Polish Youth 1st League 2022"]
[Site "Lublin"]
[Date "2022.06.28"]
[Round "4.11"]
[White "Kudlak, Julia"]
[Black "Starosta, Martyna"]
[Result "1/2-1/2"]
[ECO "C01"]
[WhiteElo "1654"]
[BlackElo "1918"]
[Annotator "RC"]
[PlyCount "46"]
[EventDate "2022.06.24"]
[EventType "team-tourn"]
[EventCountry "POL"]
[SourceTitle "playchess.com"]
[Source "ChessBase"]
[SourceQuality "1"]
[TimeControl "40/5400+30:1800+30"]

1. e4 {[%emt 0:00:06]} e6 2. d4 {[%emt 0:00:31]} d5 {[%emt 0:00:11]} 3. exd5 exd5 {[%emt 0:00:05]} 4. Bd3 {[%emt 0:02:06]} c5 {[%emt 0:00:06]} 5. dxc5 {[%emt 0:01:43]} Bxc5 {[%emt 0:00:21]} 6. Nf3 {[%emt 0:01:27]} Nf6 {[%emt 0:01:38]} 7. O-O {[%emt 0:01:33]} O-O {[%emt 0:00:27]} 8. h3 {[%emt 0:07:19]} Qd6 {[%emt 0:03:32]} 9. Nc3 {[%emt 0:04:16]} Nc6 {[%emt 0:28:36]} 10. Ne2 {[%emt 0:04:10]} Nh5 {[%emt 0:00:45]} 11. Qd2 {[%emt 0:12:45]} Be6 {[%emt 0:12:57]} 12. Qg5 {[%emt 0:04:17]} g6 {[%emt 0:05:00]} 13. Nf4 {[%emt 0:05:34]} Nxf4 {[%emt 0:02:43]} 14. Bxf4 {[%emt 0:00:52]} Qe7 {[%emt 0:02:31]} 15. Rfe1 {[%emt 0:06:21]} f6 {[%emt 0:04:32]} 16. Qh6 {[%emt 0:02:19]} Rae8 {[%emt 0:10:23]} 17. Bxg6 {[%emt 0:09:47]} hxg6 {[%emt 0:00:45]} 18. Rxe6 {[%emt 0:00:30]} Qxe6 {[%emt 0:01:40]} 19. Qxg6+ {[%emt 0:00:16]} Kh8 {[%emt 0:00:03]} 20. Qh6+ {[%emt 0:00:44]} Kg8 {[%emt 0:00:05]} 21. Qg6+ {[%emt 0:00:15]} Kh8 {[%emt 0:00:05]} 22. Qh6+ {[%emt 0:00:04]} Kg8 {[%emt 0:00:14]} 23. Qg6+ {[%emt 0:00:17]} Kh8 {[%emt 0:00:51]} 1/2-1/2

[Event "Polish Youth 1st League 2022"]
[Site "Lublin"]
[Date "2022.06.28"]
[Round "4.12"]
[White "Kulczycka, Zofia"]
[Black "Dzierzgowska, Jagoda"]
[Result "1/2-1/2"]
[ECO "C02"]
[WhiteElo "1564"]
[BlackElo "1267"]
[Annotator "NA RC"]
[PlyCount "83"]
[EventDate "2022.06.24"]
[EventType "team-tourn"]
[EventCountry "POL"]
[SourceTitle "playchess.com"]
[Source "ChessBase"]
[SourceQuality "1"]
[TimeControl "40/5400+30:1800+30"]

1. e4 {[%emt 0:00:03]} e6 {[%emt 0:00:04]} 2. d4 {[%emt 0:00:09]} d5 {[%emt 0:00:04]} 3. e5 {[%emt 0:00:14]} c5 {[%emt 0:00:03]} 4. c3 {[%emt 0:00:06]} Nc6 {[%emt 0:00:31]} 5. Nf3 {[%emt 0:00:17]} Qb6 {[%emt 0:00:07]} 6. Bd3 {[%emt 0:00:36]} cxd4 {[%emt 0:00:27]} 7. O-O {[%emt 0:00:15]} Bd7 {[%emt 0:01:46]} 8. Re1 {[%emt 0:01:02]} dxc3 {[%emt 0:08:45]} 9. Nxc3 {[%emt 0:00:13]} d4 {[%emt 0:29:20]} 10. Ne4 {[%emt 0:07:07]} Nb4 {[%emt 0:09:52]} 11. Bb1 {[%emt 0:04:36]} Bc6 {[%emt 0:01:00]} 12. Nxd4 {[%emt 0:16:21]} O-O-O {[%emt 0:02:52]} 13. Be3 {[%emt 0:04:58]} Qa5 {[%emt 0:15:24]} 14. Qc1 {[%emt 0:15:01]} Kb8 {[%emt 0:07:09]} 15. a3 {[%emt 0:03:35]} Bxe4 {[%emt 0:01:36]} 16. Bxe4 {[%emt 0:02:12]} Nd5 {[%emt 0:00:22]} 17. Bxd5 {[%emt 0:06:36]} Qxd5 {[%emt 0:00:47]} 18. a4 {[%emt 0:06:49]} Bb4 {[%emt 0:01:34]} 19. Nb5 {[%emt 0:15:07]} Qc6 {[%emt 0:10:13]} 20. Bxa7+ {[%emt 0:02:41]} Ka8 {[%emt 0:01:39]} 21. Qg5 {[%emt 0:04:30]} Ne7 {[%emt 0:01:17]} 22. Rec1 {[%emt 0:01:10]} Bd2 {[%emt 0:02:56]} 23. Rxc6 {[%emt 0:03:56]} Bxg5 {[%emt 0:00:05]} 24. Rc7 {[%emt 0:00:13]} Rc8 {[%emt 0:01:07]} 25. Rd7 {[%emt 0:00:58]} Rhd8 {[%emt 0:00:56]} 26. Rxd8 {[%emt 0:00:45]} Rxd8 {[%emt 0:00:07]} 27. Bb6 {[%emt 0:00:34]} Rd7 {[%emt 0:01:23]} 28. g3 {[%emt 0:01:17]} Nc6 {[%emt 0:00:21]} 29. f4 {[%emt 0:00:26]} Be7 {[%emt 0:00:03]} 30. a5 {[%emt 0:01:21]} Nb4 {[%emt 0:00:59]} 31. Rc1 {[%emt 0:00:21]} Nc6 {[%emt 0:00:21]} 32. a6 {[%emt 0:00:38]} bxa6 {[%emt 0:00:50]} 33. Na3 {[%emt 0:01:24]} Bxa3 {[%emt 0:00:12]} 34. bxa3 {[%emt 0:00:05]} Kb7 {[%emt 0:00:03]} 35. Bc5 {[%emt 0:00:05]} a5 {[%emt 0:00:28]} 36. Bd6 {[%emt 0:00:13]} Nd4 {[%emt 0:01:16]} 37. Rb1+ {[%emt 0:00:27]} Ka6 {[%emt 0:00:34]} 38. Bc5 {[%emt 0:00:33]} Rd5 {[%emt 0:01:36]} 39. Rb6+ {[%emt 0:01:28]} Ka7 {[%emt 0:00:21]} 40. Rb5+ {[%emt 0:00:00]} Ka6 {[%emt 0:00:00]} 41. Rb6+ {[%emt 0:03:05]} Ka7 {[%emt 0:00:28]} 42. Rb5+ {[%emt 0:08:17]} 1/2-1/2

[Event "Polish Youth 1st League 2022"]
[Site "Lublin"]
[Date "2022.06.28"]
[Round "4.13"]
[White "Luczak, Filip"]
[Black "Panek, Bartosz"]
[Result "1-0"]
[ECO "A00"]
[WhiteElo "2311"]
[BlackElo "2022"]
[Annotator "TA"]
[PlyCount "87"]
[EventDate "2022.06.24"]
[EventType "team-tourn"]
[EventCountry "POL"]
[SourceTitle "playchess.com"]
[Source "ChessBase"]
[SourceQuality "1"]
[TimeControl "40/5400+30:1800+30"]

{[%evp 13,87,28,31,17,52,13,46,24,49,43,70,65,53,28,42,0,58,6,10,-42,-31,-40,-33,-68,-46,-39,8,0,0,10,64,9,44,21,210,92,82,86,102,91,91,96,94,92,88,79,175,64,118,132,168,162,245,237,435,451,734,701,727,697,714,707,643,643,635,626,1002,937,1015,1004,1076,1035,999,986,926,835]} 1. g3 {[%emt 0:00:01]} Nf6 {[%emt 0:00:06]} 2. Bg2 {[%emt 0:00:05]} g6 {[%emt 0:00:11]} 3. e4 {[%emt 0:00:12]} d6 {[%emt 0:00:30]} 4. Ne2 {[%emt 0:00:40]} Bg7 {[%emt 0:00:05]} 5. O-O {[%emt 0:03:41]} c5 {[%emt 0:00:16]} 6. c3 {[%emt 0:01:57]} O-O {[%emt 0:03:49]} 7. d4 {[%emt 0:00:28]} Nbd7 {[%emt 0:04:46] is the legacy move (7...Nc6).} 8. h3 {[%emt 0:02:41] B06: Modern Defence.} Rb8 {[%emt 0:01:28]} 9. Be3 {[%emt 0:02:28]} Qc7 {[%emt 0:01:36]} 10. Nd2 {[%emt 0:04:58] White is slightly better.} b5 {[%emt 0:00:56] [#]} 11. b4 $146 {[%emt 0:11:11]} ({Predecessor:} 11. Rc1 Bb7 12. g4 h6 13. f4 Rfc8 14. Ng3 cxd4 15. cxd4 Qxc1 16. Qxc1 Rxc1 17. Rxc1 {1-0 (41) Mirzoev,E (2437)-Rey Malde,H (2257) Guimaraes 2021}) 11... Bb7 {[%emt 0:02:50]} 12. bxc5 {[%emt 0:02:29]} dxc5 {[%emt 0:00:06]} 13. d5 {[%emt 0:00:40]} Ne8 {[%emt 0:01:34]} 14. f4 {[%emt 0:04:17]} Nd6 {[%emt 0:03:10]} (14... Nb6 $11) 15. Bf2 {[%emt 0:08:28]} (15. a4 $1 $14) 15... Nb6 $11 {[%emt 0:01:21]} 16. Nb3 {[%emt 0:02:35]} (16. a4 $11) 16... Na4 $15 {[%emt 0:00:19]} 17. Qc2 {[%emt 0:01:17]} Nc4 {[%emt 0:00:52]} 18. Rad1 {[%emt 0:03:31]} Rfd8 {[%emt 0:01:44]} (18... e6 $5 {[%cal Re6d5]}) 19. Nd2 {[%emt 0:03:08]} Nab6 {[%emt 0:03:11]} (19... Nab2 $15) 20. Nxc4 $11 {[%emt 0:02:17]} Nxc4 {[%emt 0:00:07]} ({But not} 20... bxc4 21. a4 $16) 21. Nc1 {[%emt 0:00:49]} b4 {[%emt 0:02:35]} ({Black should play} 21... e6 $11) 22. Nb3 {[%emt 0:02:57]} (22. cxb4 $14 cxb4 23. e5) 22... Bxc3 {[%emt 0:02:42]} (22... Na3 $5 {[%cal Ra3c2]} 23. Qc1 Bxc3 $14) 23. Nxc5 {[%emt 0:01:40]} ({Of course not} 23. Bxc5 a5 24. Bf2 Ba6 $15) 23... Rdc8 $2 {[%emt 0:10:19] [#]} (23... Qa5 $11 {and Black has nothing to worry.}) 24. e5 {[%emt 0:03:35]} (24. Qe2 $1 $18 {[%cal Re2c4]} Na5 25. e5) 24... Qa5 $16 {[%emt 0:26:07]} 25. Nxb7 {[%emt 0:02:19]} Rxb7 {[%emt 0:00:35]} 26. d6 {[%emt 0:07:44]} Rd7 {[%emt 0:00:16][%cal Re7d6]} 27. dxe7 {[%emt 0:02:44]} Rxe7 {[%emt 0:00:06]} 28. Rd5 {[%emt 0:00:03]} Qa3 {[%emt 0:01:41]} 29. Rfd1 $36 {[%emt 0:00:23][%cal Bf1d1,Bd1a1,Ba1a6,Ba6f6][%mdl 2080] Rd8+ is the strong threat. White is in control.} Kg7 {[%emt 0:07:47]} (29... Ree8 $16 {is a better defense.}) 30. Qb3 {[%emt 0:03:04]} (30. Rd8 $18 Rxd8 31. Rxd8) 30... Qxb3 {[%emt 0:08:04]} ({Black should try} 30... Nb2 $14) 31. axb3 {[%emt 0:00:02]} Nb2 {[%emt 0:00:34]} 32. Ra1 {[%emt 0:05:03]} Rcc7 {[%emt 0:00:06]} (32... Nd3 {was necessary.}) 33. Ra6 $18 {[%emt 0:00:41]} f6 $2 {[%emt 0:05:06]} (33... Red7 34. Rdd6 Re7) 34. Rxf6 {[%emt 0:03:36] White is clearly winning.} Na4 {[%emt 0:03:18]} (34... a5 $142 35. Bb6 Rcd7 36. Bxa5 Rxd5 37. Bxd5 Nd1) 35. bxa4 {[%emt 0:02:25]} b3 {[%emt 0:00:06]} 36. Rb5 {[%emt 0:01:20]} b2 {[%emt 0:00:11]} 37. Rc6 {[%emt 0:01:45] Prevents Rc4.} Red7 {[%emt 0:00:29] [#]} 38. Rxc3 $1 {[%emt 0:00:50]} Rxc3 {[%emt 0:00:09]} 39. Rxb2 {[%emt 0:00:03]} Ra3 {[%emt 0:00:14]} 40. Kh2 {[%emt 0:00:00]} Rc7 {[%emt 0:00:00]} 41. g4 {[%emt 0:03:43][%cal Bg3g4,Bg4f5][%mdl 32]} Rxa4 42. f5 {[%emt 0:00:42]} gxf5 {[%emt 0:01:12]} 43. gxf5 {[%emt 0:00:02]} Ra5 {[%emt 0:00:31]} 44. Bg3 {[%emt 0:00:21] Weighted Error Value: White=0.22 (precise) /Black=0.46} 1-0

[Event "Polish Youth 1st League 2022"]
[Site "Lublin"]
[Date "2022.06.28"]
[Round "4.14"]
[White "Kubik, Rafal"]
[Black "Bachor, Tomasz"]
[Result "1/2-1/2"]
[ECO "B22"]
[WhiteElo "1827"]
[BlackElo "1971"]
[Annotator "NA RC"]
[PlyCount "104"]
[EventDate "2022.06.24"]
[EventType "team-tourn"]
[EventCountry "POL"]
[SourceTitle "playchess.com"]
[Source "ChessBase"]
[SourceQuality "1"]
[TimeControl "40/5400+30:1800+30"]

1. e4 c5 {[%emt 0:00:20]} 2. c3 {[%emt 0:00:09]} g6 {[%emt 0:01:14]} 3. d4 {[%emt 0:00:13]} cxd4 {[%emt 0:00:05]} 4. cxd4 {[%emt 0:00:04]} d5 {[%emt 0:00:12]} 5. e5 {[%emt 0:00:08]} a6 {[%emt 0:00:19]} 6. h3 {[%emt 0:00:12]} Bg7 {[%emt 0:01:19]} 7. Nf3 {[%emt 0:00:33]} Nc6 {[%emt 0:00:37]} 8. Nc3 {[%emt 0:00:51]} f6 {[%emt 0:01:27]} 9. Bf4 {[%emt 0:00:42]} fxe5 10. dxe5 {[%emt 0:00:21]} e6 {[%emt 0:08:19]} 11. Bd3 {[%emt 0:03:16]} Nge7 {[%emt 0:00:39]} 12. Qd2 {[%emt 0:06:18]} Qc7 {[%emt 0:06:39]} 13. Rc1 {[%emt 0:05:47]} Bd7 {[%emt 0:05:58]} 14. Ne2 {[%emt 0:08:58]} Qa5 {[%emt 0:06:53]} 15. Qxa5 {[%emt 0:04:00]} Nxa5 {[%emt 0:00:05]} 16. Ned4 {[%emt 0:00:49]} Nec6 {[%emt 0:08:54]} 17. Ke2 {[%emt 0:03:30]} (17. Nxc6 $11 Nxc6 18. O-O) 17... O-O {[%emt 0:03:11]} 18. g3 {[%emt 0:02:18]} Rac8 {[%emt 0:02:27]} 19. a3 {[%emt 0:03:49]} Nxd4+ {[%emt 0:04:20]} 20. Nxd4 {[%emt 0:01:28]} g5 {[%emt 0:12:49]} 21. Rxc8 {[%emt 0:02:16]} (21. Bd2 $11 {was preferrable.} Bxe5 22. Nf3 Rxc1 23. Rxc1 Rxf3 24. Kxf3) 21... Rxc8 {[%emt 0:02:17]} 22. Bxg5 {[%emt 0:00:17]} Bxe5 {[%emt 0:00:12]} 23. Be3 {[%emt 0:01:00]} Nc4 {[%emt 0:01:30]} 24. f4 {[%emt 0:10:53]} Bf6 {[%emt 0:02:53]} 25. Bxc4 {[%emt 0:03:26]} Rxc4 {[%emt 0:00:08]} 26. Kd3 {[%emt 0:01:25]} Be8 {[%emt 0:04:14]} 27. g4 {[%emt 0:03:47]} Bg6+ {[%emt 0:04:44]} 28. f5 $11 {[%emt 0:00:45]} exf5 {[%emt 0:00:10]} 29. gxf5 {[%emt 0:00:12]} Bxd4 {[%emt 0:00:23]} 30. Bxd4 {[%emt 0:03:08]} Bxf5+ {[%emt 0:00:12]} 31. Ke3 {[%emt 0:00:03]} Kf7 {[%emt 0:00:28]} 32. Rg1 {[%emt 0:00:34]} Bg6 {[%emt 0:06:44]} 33. h4 {[%emt 0:00:50]} Rc2 {[%emt 0:04:59]} 34. h5 {[%emt 0:01:59]} Bxh5 {[%emt 0:00:16]} 35. Rg7+ {[%emt 0:00:07]} Ke6 {[%emt 0:00:32]} 36. Rxh7 {[%emt 0:01:01]} Re2+ {[%emt 0:02:32]} 37. Kd3 {[%emt 0:00:06]} Bg6+ {[%emt 0:00:08]} 38. Kxe2 {[%emt 0:00:09]} Bxh7 {[%emt 0:00:23]} 39. Kd2 {[%emt 0:00:15]} Kd6 {[%emt 0:00:34]} 40. Kc3 {[%emt 0:00:00]} Kc6 {[%emt 0:00:00]} 41. Kb4 {[%emt 0:00:27]} b6 {[%emt 0:00:37]} 42. Be3 {[%emt 0:00:09]} Bd3 {[%emt 0:00:15]} 43. Bd4 {[%emt 0:00:18]} Be2 {[%emt 0:00:12]} 44. Be3 {[%emt 0:00:08]} a5+ {[%emt 0:00:19]} 45. Kc3 {[%emt 0:00:08]} b5 {[%emt 0:00:19]} 46. Bd4 {[%emt 0:00:08]} Bf1 {[%emt 0:00:24]} 47. Bf6 {[%emt 0:00:09]} Kd6 {[%emt 0:00:19]} 48. Bd8 {[%emt 0:00:14]} b4+ {[%emt 0:01:05]} 49. axb4 {[%emt 0:00:09]} axb4+ {[%emt 0:00:04]} 50. Kxb4 {[%emt 0:00:03]} d4 {[%emt 0:00:05]} 51. Bf6 {[%emt 0:00:05]} Kd5 {[%emt 0:00:07]} 52. Bxd4 {[%emt 0:00:07]} Kxd4 {[%emt 0:00:06]} 1/2-1/2

[Event "Polish Youth 1st League 2022"]
[Site "Lublin"]
[Date "2022.06.28"]
[Round "4.15"]
[White "Cieslak, Patryk"]
[Black "Karwot, Marek"]
[Result "1-0"]
[ECO "A04"]
[WhiteElo "2019"]
[BlackElo "1454"]
[Annotator "RC"]
[PlyCount "61"]
[EventDate "2022.06.24"]
[EventType "team-tourn"]
[EventCountry "POL"]
[SourceTitle "playchess.com"]
[Source "ChessBase"]
[SourceQuality "1"]
[TimeControl "40/5400+30:1800+30"]

1. Nf3 {[%emt 0:00:14]} b6 {[%emt 0:00:58]} 2. g3 {[%emt 0:00:12]} Bb7 {[%emt 0:00:10]} 3. Bg2 {[%emt 0:00:04]} e6 {[%emt 0:00:34]} 4. O-O {[%emt 0:00:43]} d5 {[%emt 0:01:37]} 5. d3 {[%emt 0:01:46]} Nf6 {[%emt 0:01:37]} 6. Nbd2 {[%emt 0:00:22]} Be7 {[%emt 0:02:39]} 7. b3 {[%emt 0:04:31]} O-O {[%emt 0:02:10]} 8. Bb2 {[%emt 0:00:23]} c5 {[%emt 0:02:38]} 9. Ne5 {[%emt 0:02:27]} Nc6 {[%emt 0:05:18]} 10. Nxc6 {[%emt 0:02:51]} Bxc6 {[%emt 0:00:08]} 11. e4 {[%emt 0:02:51]} dxe4 {[%emt 0:05:36]} 12. dxe4 {[%emt 0:02:32]} Qc7 {[%emt 0:02:49]} 13. Qe2 {[%emt 0:02:02]} Rad8 {[%emt 0:05:16]} 14. Rad1 {[%emt 0:05:58]} Rd7 {[%emt 0:06:08]} 15. e5 {[%emt 0:02:40]} Bxg2 {[%emt 0:05:32]} 16. exf6 {[%emt 0:06:15]} Bxf1 {[%emt 0:07:43]} 17. Qg4 {[%emt 0:00:47]} Bxf6 {[%emt 0:01:32]} 18. Bxf6 {[%emt 0:00:11]} g6 {[%emt 0:00:21]} 19. Qg5 {[%emt 0:02:23]} Qc6 {[%emt 0:00:54]} 20. Rxf1 {[%emt 0:00:19]} e5 {[%emt 0:00:51]} 21. Ne4 {[%emt 0:00:30]} Rd6 {[%emt 0:01:23]} 22. Nxd6 {[%emt 0:00:09]} Qxd6 {[%emt 0:00:06]} 23. Be7 {[%emt 0:00:05]} Qe6 {[%emt 0:01:28]} 24. Bxf8 {[%emt 0:00:05]} Kxf8 {[%emt 0:00:07]} 25. Rd1 {[%emt 0:00:10]} Kg7 {[%emt 0:00:22]} 26. Qe3 {[%emt 0:00:07]} Qf6 {[%emt 0:01:42]} 27. Re1 {[%emt 0:00:01]} Qd8 {[%emt 0:00:51]} 28. Qxe5+ {[%emt 0:00:03]} Kh6 {[%emt 0:00:20]} 29. h4 {[%emt 0:00:05]} Qd7 {[%emt 0:00:18]} 30. Qe8 {[%emt 0:00:08]} Qf5 {[%emt 0:00:23]} 31. Qe3+ {[%emt 0:00:04]} 1-0